bitfinex/quotes_ETHUSD_20220119
["timestamp","ask_amount","ask_price","bid_price","bid_amount"]
[1642590929563,0.02454656,3129.7,3128.4,0.00397896]
[1642590929754,0.01206307,3130.0,3128.4,0.00397896]
[1642590929755,1.87273041,3128.9,3128.4,0.00397896]
[1642590929953,1.87273041,3128.9,3128.1,0.1216]
[1642590929954,1.4587253,3128.8,3128.2,0.00511581]
[1642590930359,0.0022737,3129.5,3128.1,0.79947]
[1642590930555,0.0022737,3129.5,3128.2,0.0311111]
[1642590930755,0.00170527,3129.4,3128.2,0.13871581]
[1642590930959,0.00170527,3129.4,3128.3,0.00454739]
[1642590931155,0.01277975,3129.8,3128.3,0.00454739]
[1642590931156,0.00113685,3129.3,3128.3,0.00454739]
[1642590931354,1.47604872,3129.0,3128.3,0.00454739]
[1642590931558,1.53898945,3128.5,3128.3,0.00454739]
[1642590931997,0.00341054,3129.7,3127.9,0.14762108]
[1642590932196,0.00341054,3129.7,3128.0,0.0856001]
[1642590932399,1.1548,3130.2,3128.0,0.0856001]
[1642590932400,0.03217961,3131.1,3128.4,0.79937]
[1642590932602,0.01468569,3131.8,3128.4,0.79937]
[1642590932603,0.01468569,3131.8,3130.1,1.59773]
[1642590932799,0.01468569,3131.8,3131.0,0.01289488]
[1642590933001,1.16989537,3131.1,3130.7,0.386]
[1642590933396,2.20776017,3131.0,3130.7,0.386]
[1642590933603,2.20776017,3131.0,3130.1,1.12208258]
[1642590933799,2.20776017,3131.0,3129.5,4.72319664]
[1642590933800,0.0073895,3130.9,3129.7,3.12517664]
[1642590933997,0.0073895,3130.9,3129.5,0.386]
[1642590934196,0.00682108,3130.8,3129.5,0.386]
[1642590934400,0.00682108,3130.8,3129.2,1.12208258]
[1642590934401,2.29377952,3129.7,3129.2,1.12208258]
[1642590934603,6.85,3129.5,3128.8,0.5137]
[1642590934816,6.85,3129.5,3128.7,1.0]
[1642590934817,6.85,3129.4,3128.7,1.0]
[1642590935001,6.85,3129.3,3128.7,1.0]
[1642590935197,6.85,3129.3,3128.9,0.00227369]
[1642590935644,6.85,3129.3,3128.4,0.92533581]
[1642590935844,0.79942,3130.3,3128.5,0.03206511]
[1642590935845,1.3272971,3129.0,3128.5,0.03206511]
[1642590936045,1.1602,3130.5,3128.5,0.11056775]
[1642590936250,0.00511581,3130.2,3128.8,0.7992399]
[1642590936449,0.0321796,3130.7,3129.1,0.01292793]
[1642590936450,0.00625266,3130.4,3129.1,0.01292793]
[1642590936651,4.9393,3130.9,3129.1,0.39892793]
[1642590936652,0.00454739,3130.1,3129.1,0.39892793]
[1642590936850,1.2056,3130.9,3129.1,0.39892793]
[1642590936851,0.00568423,3130.3,3129.4,0.79894]
[1642590937048,0.00397896,3130.0,3129.5,0.01977101]
[1642590937253,1.30763439,3130.2,3129.0,0.03317879]
[1642590937450,1.30763439,3130.2,3128.8,0.1248]
[1642590937451,1.08716208,3129.3,3128.8,3.24517664]
[1642590937652,1.08716208,3129.3,3129.1,0.00113685]
[1642590937954,1.08716208,3129.3,3129.0,0.00170527]
[1642590938149,0.00852635,3130.8,3129.0,0.00170527]
[1642590938352,2.37202635,3131.0,3129.6,0.00727939]
[1642590938549,0.1277,3130.9,3129.6,0.00727939]
[1642590938749,2.37202635,3131.0,3129.7,0.13395266]
[1642590939050,0.1277,3130.8,3129.8,0.03527753]
[1642590939292,2.37202635,3131.0,3129.8,0.00568423]
[1642590939293,1.86555481,3130.7,3129.8,0.00568423]
[1642590939498,1.86555481,3130.7,3129.7,0.799031]
[1642590939499,1.48072094,3130.0,3129.9,0.00511581]
[1642590939696,0.1277,3130.6,3129.8,0.00568423]
[1642590939905,0.1277,3130.9,3129.8,1.6416783]
[1642590940097,1.1738,3131.0,3130.1,0.03673799]
[1642590940298,1.1738,3131.0,3130.4,0.04658186]
[1642590940499,4.9502,3131.4,3130.6,0.79881]
[1642590940702,1.90825124,3131.1,3130.7,0.03510742]
[1642590940900,1.90825124,3131.1,3130.5,0.00170527]
[1642590941100,0.15052716,3131.0,3130.5,0.00170527]
[1642590941300,0.1277,3131.0,3130.4,0.00227369]
[1642590941599,0.1277,3131.0,3130.0,0.799]
[1642590941905,0.1277,3131.0,3129.9,0.00511581]
[1642590941906,1.8851072,3130.3,3129.9,0.00511581]
[1642590942101,1.59585027,3130.2,3130.1,0.00397896]
[1642590942301,1.59585027,3130.2,3129.4,0.00795793]
[1642590942505,1.46815027,3130.2,3129.4,0.00795793]
[1642590942704,1.59595027,3130.2,3129.4,0.00795793]
[1642590943000,1.59595027,3130.2,3129.2,0.00909477]
[1642590943001,1.75906713,3129.6,3129.2,0.00909477]
[1642590943189,1.59595027,3130.2,3128.9,0.01080004]
[1642590943190,0.1278,3129.5,3128.9,0.01080004]
[1642590943366,0.1278,3129.5,3128.6,0.01270147]
[1642590943367,0.1278,3130.1,3128.6,2.56903742]
[1642590943550,5.17565027,3130.2,3128.8,1.60986847]
[1642590943752,1.1262359,3129.4,3129.0,0.7993]
[1642590944153,3.7075,3130.2,3129.0,0.7993]
[1642590944154,3.7075,3130.2,3129.1,0.0096632]
[1642590944356,0.0134364,3130.0,3129.1,0.0096632]
[1642590944656,0.01055649,3129.8,3129.2,1.59852]
[1642590944954,0.1278,3130.1,3129.2,2.39778]
[1642590945159,0.1278,3130.1,3129.3,1.60686635]
[1642590945355,3.7075,3130.2,3129.3,1.60686635]
[1642590945557,3.7075,3130.2,3129.4,0.00795793]
[1642590945754,0.1278,3130.1,3129.4,0.00795793]
[1642590946155,1.44774429,3129.7,3129.5,1.59834]
[1642590946556,0.1278,3130.3,3129.6,0.00682108]
[1642590946788,0.1278,3130.3,3129.6,1.60510108]
[1642590946994,0.1277,3130.6,3129.6,0.00682108]
[1642590947196,1.95330079,3130.5,3129.7,0.00625266]
[1642590947394,0.1277,3130.4,3129.2,0.00909477]
[1642590947592,0.1277,3130.4,3129.6,0.00682108]
[1642590947593,0.00423177,3130.3,3129.6,0.00682108]
[1642590947796,0.1277,3130.2,3129.2,0.00909477]
[1642590948192,0.00391772,3130.1,3128.8,1.60998847]
[1642590948393,2.02852391,3129.6,3128.8,2.40939847]
[1642590948592,0.1278,3130.2,3129.1,0.7993]
[1642590948793,0.1278,3130.2,3129.2,0.02518384]
[1642590948992,0.1278,3130.2,3129.2,0.00909477]
[1642590949192,0.1278,3130.2,3129.3,0.00852635]
[1642590949392,0.1278,3130.2,3128.7,0.01193689]
[1642590949393,1.31834268,3129.0,3128.7,0.01193689]
[1642590949593,1.31834268,3129.0,3128.8,0.01136847]
[1642590949794,0.1278,3130.1,3128.8,0.79942]
[1642590949997,0.1278,3130.6,3129.2,1.5983]
[1642590950197,3.85967957,3130.7,3129.3,0.01297384]
[1642590950401,3.85967957,3130.7,3129.3,0.01450019]
[1642590950644,3.85967957,3130.7,3129.6,0.79899]
[1642590950849,2.18033964,3130.5,3129.6,1.5980402]
[1642590951048,1.12388125,3129.9,3129.7,0.00625266]
[1642590951250,0.03180987,3131.9,3130.1,2.07282875]
[1642590951847,0.03180987,3131.9,3129.9,3.19626]
[1642590951848,1.4506,3131.4,3130.3,0.01943194]
[1642590952050,0.1277,3131.3,3130.5,1.59819]
[1642590952249,19.1777,3131.3,3130.5,1.59819]
[1642590952448,1.26851673,3131.2,3130.6,0.00341055]
[1642590952649,0.1277,3131.1,3130.6,0.00341055]
[1642590953053,1.88740391,3131.0,3130.6,0.00341055]
[1642590953249,6.85,3130.9,3130.3,2.39732]
[1642590953448,7.15170527,3130.9,3130.3,2.39732]
[1642590953648,7.15170527,3130.9,3130.5,1.59819]
[1642590953849,1.11833968,3130.6,3130.5,1.59819]
[1642590954155,1.535123,3131.5,3130.7,0.02532031]
[1642590954428,0.8689289,3133.3,3130.9,0.00429705]
[1642590954630,0.8689289,3133.3,3130.7,3.2407671]
[1642590954631,0.00113685,3131.1,3130.7,3.2407671]
[1642590954827,0.70383,3130.7,3130.6,0.386]
[1642590955029,0.0121441,3133.0,3130.8,0.00170527]
[1642590955227,0.0121441,3133.0,3130.5,0.28888846]
[1642590955228,0.386,3132.9,3130.6,2.39908212]
[1642590955428,0.79898,3132.4,3131.3,0.79902]
[1642590955631,1.5980158,3132.2,3131.3,0.79902]
[1642590956028,1.9016542,3131.4,3131.3,0.79902]
[1642590956227,1.9016542,3131.4,3131.2,1.59804]
[1642590956428,0.01700422,3131.3,3129.9,0.1277]
[1642590956632,0.01700422,3131.3,3129.4,3.21440646]
[1642590956633,0.03931259,3131.1,3129.4,3.21440646]
[1642590956832,0.03931259,3131.1,3128.8,3.21440646]
[1642590956833,6.85,3130.9,3128.8,3.21440646]
[1642590957033,6.85,3130.9,3128.1,0.386]
[1642590957034,6.90643271,3130.6,3129.5,1.59892]
[1642590957234,6.90643271,3130.6,3127.1,0.01297193]
[1642590957235,6.85,3130.4,3127.1,0.01297193]
[1642590957436,6.85,3130.4,3128.1,1.59923]
[1642590957437,4.84875395,3130.3,3128.1,1.59923]
[1642590957633,6.43865384,3130.3,3128.1,1.59923]
[1642590957835,0.01240323,3129.9,3128.4,2.39863]
[1642590958054,2.2198524,3128.9,3127.6,0.386]
[1642590958258,6.85,3129.7,3127.6,0.386]
[1642590958259,3.08670646,3129.6,3128.5,0.00568424]
[1642590958455,0.1278,3129.5,3127.7,0.15903163]
[1642590958654,10.772,3129.7,3127.7,0.15903163]
[1642590958655,10.772,3129.7,3128.4,0.00625266]
[1642590958852,11.072,3129.7,3127.8,0.1374632]
[1642590959053,11.072,3129.7,3128.7,0.79971]
[1642590959253,0.1278,3129.6,3128.7,0.79971]
[1642590959451,0.1278,3129.6,3128.8,0.00397897]
[1642590959652,0.1278,3129.6,3129.0,1.59909]
[1642590960053,1.33894178,3129.5,3129.1,0.0022737]
[1642590960455,0.00408788,3129.4,3129.1,0.0022737]
[1642590960658,0.00408788,3129.4,3128.6,3.19761]
[1642590960659,6.85,3129.2,3128.6,3.19761]
[1642590960862,6.8562153,3129.2,3128.6,3.19761]
[1642590961057,7.1562153,3129.2,3128.7,0.00227369]
[1642590961260,0.1278,3129.1,3128.7,0.80195369]
[1642590961462,1.20761271,3128.8,3128.7,0.80195369]
[1642590961660,1.20761271,3128.8,3128.7,0.79968]
[1642590961892,1.44612127,3129.0,3128.8,1.59894]
[1642590962094,0.3,3128.9,3128.8,1.59894]
[1642590962494,1.47386376,3128.9,3128.8,1.59894]
[1642590962796,0.00113685,3129.3,3128.8,1.59894]
[1642590962995,0.1278,3129.9,3129.1,0.79939]
[1642590963295,0.00284212,3129.8,3129.1,0.79939]
[1642590963501,0.1278,3129.7,3129.1,2.39813]
[1642590963698,13.255,3130.7,3129.3,0.79939]
[1642590963699,1.30542969,3129.9,3129.3,0.79939]
[1642590963898,9.3481,3130.7,3129.4,4.0151022]
[1642590964097,0.00170527,3130.0,3129.5,0.04790952]
[1642590964297,6.9968,3131.2,3129.8,0.08071251]
[1642590964494,6.9968,3131.2,3129.8,2.75]
[1642590964495,2.4515,3131.2,3129.8,2.75]
[1642590964895,1.39217084,3131.0,3130.1,0.79896]
[1642590965099,19.1777,3130.9,3129.9,1.59961527]
[1642590965296,6.85,3130.6,3129.1,0.1277]
[1642590965572,0.7995,3130.1,3129.1,0.1277]
[1642590965772,0.08749666,3130.0,3129.2,0.00397896]
[1642590965971,0.9273,3130.1,3129.2,0.00397896]
[1642590965972,1.49977994,3129.8,3129.4,1.59885]
[1642590966179,0.1278,3129.7,3129.2,0.00397896]
[1642590966370,0.1278,3129.7,3129.5,0.00227369]
[1642590966970,0.92729,3129.7,3129.5,0.00227369]
[1642590967170,0.92729,3129.7,3129.1,0.1277]
[1642590967171,0.16939438,3129.5,3129.1,0.1277]
[1642590967379,0.1278,3129.4,3129.1,0.1277]
[1642590967570,7.15,3129.6,3128.6,3.19726]
[1642590967571,0.01246131,3129.2,3128.6,3.19726]
[1642590967772,0.22431288,3129.1,3128.6,3.19726]
[1642590967972,0.22431288,3129.1,3128.8,1.59919]
[1642590968173,1.19140824,3129.0,3128.8,1.59919]
[1642590968373,0.3,3129.0,3128.9,0.00341054]
[1642590968575,0.1278,3129.8,3128.9,0.00341054]
[1642590968778,0.1278,3130.2,3128.9,2.41411779]
[1642590968974,0.1278,3130.2,3129.1,0.79939]
[1642590969173,0.1278,3130.6,3129.4,1.59844]
[1642590969397,0.0022737,3130.1,3129.4,1.59844]
[1642590969597,0.1278,3130.9,3129.5,0.00113684]
[1642590969796,0.1278,3130.9,3129.5,1.60185054]
[1642590969995,0.00227369,3130.5,3129.5,1.60185054]
[1642590970196,3.2,3130.2,3129.8,0.79925]
[1642590970597,4.53073666,3130.2,3129.9,0.80038685]
[1642590970800,3.2,3130.2,3129.9,0.80038685]
[1642590971000,3.5,3130.2,3129.9,0.80038685]
[1642590971201,0.3,3130.2,3129.9,0.80038685]
[1642590971405,0.3,3130.2,3129.9,0.00113685]
[1642590971599,0.42940527,3130.4,3129.9,0.00113685]
[1642590971804,0.42940527,3130.4,3129.8,0.79925]
[1642590971805,6.85,3129.9,3129.3,2.39766]
[1642590972005,6.85,3129.9,3128.1,1.5986188]
[1642590972006,0.01248337,3129.4,3128.2,3.10233752]
[1642590972201,0.1278,3129.3,3127.9,3.10233752]
[1642590972600,0.1278,3129.3,3128.0,0.01080005]
[1642590972803,0.1278,3129.3,3128.6,0.79964]
[1642590972804,1.43528148,3128.7,3128.6,0.79964]
[1642590973049,0.1278,3129.0,3128.6,0.79964]
[1642590973248,0.1278,3129.4,3128.6,0.8070295]
[1642590973449,0.01251727,3129.3,3128.3,2.39883]
[1642590973656,0.01251727,3129.3,3126.5,8.57010753]
[1642590973657,0.16123183,3129.2,3126.5,8.57010753]
[1642590973851,0.16123183,3129.2,3128.4,0.00170527]
[1642590973852,0.16939438,3129.0,3128.4,0.00170527]
[1642590974054,0.5138,3128.9,3128.4,0.00170527]
[1642590974249,0.13933682,3128.9,3127.6,2.39931]
[1642590974448,1.22236584,3128.8,3127.6,2.39931]
[1642590974651,1.12791603,3128.3,3127.7,0.00568424]
[1642590974852,1.12791603,3128.3,3127.8,0.79977]
[1642590975052,1.12791603,3128.3,3127.9,1.5995]
[1642590975251,1.12791603,3128.3,3127.9,1.60404739]
[1642590975452,1.12791603,3128.3,3128.0,0.00397897]
[1642590975653,0.13894663,3128.2,3128.0,0.00397897]
[1642590975956,1.42791603,3128.3,3128.0,1.60346897]
[1642590976253,1.42791603,3128.3,3128.0,0.80366897]
[1642590976254,1.12791603,3128.3,3128.0,0.80366897]
[1642590976454,0.1278,3128.8,3128.1,0.00341054]
[1642590976656,0.1278,3128.8,3128.2,1.59955]
[1642590977109,0.1278,3128.8,3128.3,0.0022737]
[1642590977508,4.11774517,3128.4,3128.3,0.0022737]
[1642590977708,4.11774517,3128.4,3128.3,1.6018437]
[1642590978312,4.11774517,3128.4,3128.3,0.0022737]
[1642590978615,7.01939438,3128.3,3127.2,3.199]
[1642590978812,0.1278,3128.2,3127.2,3.199]
[1642590979012,0.1278,3128.2,3127.9,1.59977]
[1642590979222,0.48393577,3128.1,3127.3,0.00568423]
[1642590979417,0.48393577,3128.1,3126.8,3.19944]
[1642590979418,2.00692055,3128.0,3126.8,3.19944]
[1642590979622,2.00692055,3128.0,3127.2,0.80015]
[1642590979623,0.686,3127.9,3127.2,0.80015]
[1642590979818,0.1278,3127.8,3127.2,0.80015]
[1642590980117,0.386,3127.7,3127.3,0.00568423]
[1642590980318,1.59100646,3127.6,3127.3,0.00568423]
[1642590981254,0.386,3127.5,3127.3,0.00568423]
[1642590981457,0.13009057,3127.3,3125.9,3.07637208]
[1642590981655,6.9779,3127.4,3125.9,3.07637208]
[1642590981656,0.12531164,3127.1,3125.9,3.07637208]
[1642590981859,1.1279,3127.3,3126.0,0.0073895]
[1642590982056,0.386,3127.1,3126.7,1.60038]
[1642590982456,1.5381188,3127.0,3126.8,0.00284212]
[1642590982857,6.9779,3126.9,3126.8,0.00284212]
[1642590983055,6.9779,3126.9,3126.2,0.00625266]
[1642590983056,8.2779,3126.9,3126.2,0.00625266]
[1642590983258,0.386,3126.8,3126.3,1.60057]
[1642590983458,0.1279,3126.7,3126.3,1.60057]
[1642590983660,0.1279,3126.7,3125.6,1.60066]
[1642590983661,6.85,3126.5,3125.6,1.60066]
[1642590983861,4.08800912,3126.4,3124.8,3.20131]
[1642590984057,5.38800912,3126.4,3125.7,0.00397897]
[1642590984302,0.50371478,3126.3,3125.7,0.00397897]
[1642590984507,4.08366171,3126.2,3125.7,0.00397897]
[1642590984710,0.01236496,3125.8,3122.6,17.35572672]
[1642590984907,0.01236496,3125.8,3121.8,0.128]
[1642590984908,0.13988324,3123.4,3121.8,0.128]
[1642590985111,4.823,3125.0,3121.6,0.6685743]
[1642590985112,0.514,3123.3,3122.7,0.01477901]
[1642590985309,0.386,3123.3,3123.0,1.60199]
[1642590985510,0.09373057,3124.2,3123.0,1.60199]
[1642590985511,0.128,3124.1,3123.0,1.60199]
[1642590985720,0.386,3124.1,3123.8,1.9223416]
[1642590985912,0.386,3124.1,3123.8,3.35748344]
[1642590986114,0.386,3125.0,3123.9,0.00795793]
[1642590986312,0.16720505,3125.4,3124.3,1.60086]
[1642590986512,0.16720505,3125.4,3124.9,0.01234169]
[1642590986715,0.00113685,3125.5,3124.9,0.01234169]
[1642590986910,0.00113685,3125.5,3125.3,1.1496805]
[1642590987309,0.1279,3126.6,3125.4,2.4]
[1642590987514,0.1279,3126.6,3125.4,1.60047]
[1642590987515,1.1279,3126.6,3125.4,1.60047]
[1642590987710,0.00568423,3126.5,3125.4,1.60047]
[1642590987910,0.1279,3126.4,3125.4,1.60047]
[1642590988151,0.13301581,3126.4,3125.4,1.60047]
[1642590988454,0.10388984,3126.3,3125.0,0.00170527]
[1642590988653,0.1279,3126.2,3125.0,0.00170527]
[1642590988852,0.13187896,3126.2,3125.0,0.00284212]
[1642590989052,0.00341054,3126.1,3125.3,0.80037]
[1642590989257,0.00341054,3126.1,3125.4,3.06966844]
[1642590989456,0.00284212,3126.0,3125.6,1.60002]
[1642590989855,0.40429994,3127.2,3125.6,8.45002]
[1642590990056,0.30429994,3127.2,3126.0,2.11624294]
[1642590990255,0.0122819,3126.7,3125.7,0.00170528]
[1642590990660,3.2,3126.1,3125.7,0.00170528]
[1642590990859,0.08709602,3126.0,3125.7,0.00170528]
[1642590991057,3.2,3126.1,3125.3,0.00397897]
[1642590991258,3.2,3126.1,3125.6,2.24731742]
[1642590991659,3.2,3126.1,3125.7,0.00170528]
[1642590992314,3.2,3126.1,3125.7,0.80191528]
[1642590992709,3.2,3126.1,3125.8,0.00113685]
[1642590993914,3.2,3126.1,3125.8,0.8002]
[1642590995021,3.2,3126.1,3125.7,0.00170528]
[1642590995022,0.16939438,3126.0,3125.7,0.00170528]
[1642590995214,6.85,3125.9,3125.2,0.80036]
[1642590995418,0.5139,3125.8,3124.3,4.7925431]
[1642590995685,1.5139,3125.8,3125.3,0.00227369]
[1642590995887,0.5139,3125.8,3125.3,0.00227369]
[1642590996084,0.5139,3125.8,3125.4,1.29335016]
[1642590996495,0.5139,3125.8,3125.2,0.80039]
[1642590996496,0.5139,3125.8,3125.5,0.00113684]
[1642590996790,0.386,3125.8,3125.5,0.00113684]
[1642590996987,0.08618289,3125.7,3125.5,0.00113684]
[1642590997186,0.08618289,3125.7,3125.1,0.80039]
[1642590997187,5.5279,3125.6,3125.1,0.80039]
[1642590997388,0.10651931,3125.5,3125.2,0.00284211]
[1642590997589,5.5279,3125.6,3125.2,0.00284211]
[1642590997590,5.4,3125.6,3125.2,0.00284211]
[1642590997789,0.1279,3125.5,3125.0,1.60062]
[1642590998002,0.00170527,3125.5,3124.4,0.1]
[1642590998189,0.10589796,3125.3,3124.4,0.1]
[1642590998392,0.51513684,3125.4,3124.5,0.00397897]
[1642590998393,0.14023916,3125.2,3124.5,0.00397897]
[1642590998592,0.386,3125.1,3124.5,0.00397897]
[1642590998789,0.386,3125.1,3124.0,2.06913522]
[1642590998790,0.128,3125.0,3124.0,2.06913522]
[1642590998990,0.514,3125.0,3124.0,2.06913522]
[1642590999329,0.514,3125.0,3124.2,0.80063]
[1642590999531,0.514,3125.0,3124.2,1.60122]
[1642590999732,0.09306293,3124.9,3124.3,0.00511581]
[1642590999931,0.128,3124.8,3124.3,0.00511581]
[1642591000138,0.128,3124.9,3124.3,0.00511581]
[1642591000333,0.128,3124.9,3124.0,0.00682108]
[1642591000536,0.386,3124.8,3124.0,0.00682108]
[1642591000735,0.13101693,3124.6,3124.0,0.00682108]
[1642591001034,0.10093928,3124.4,3123.4,0.01023162]
[1642591001234,0.128,3124.3,3123.4,0.01023162]
[1642591001832,0.128,3124.3,3122.9,2.0683975]
[1642591002036,0.128,3124.3,3122.9,2.08147124]
[1642591002233,1.1614,3124.8,3123.0,0.01250532]
[1642591002234,0.128,3124.7,3123.0,0.01250532]
[1642591002640,3.2,3124.9,3123.1,0.128]
[1642591002835,3.2,3124.9,3124.3,1.46874777]
[1642591003056,3.2,3124.9,3124.3,0.80056]
[1642591003250,3.2,3124.9,3124.4,0.00454739]
[1642591003855,3.2,3124.9,3124.3,0.00511581]
[1642591004455,3.2,3124.9,3124.3,0.80566581]
[1642591004855,3.2,3124.9,3124.4,1.436384]
[1642591005056,3.5,3124.9,3124.4,0.00454739]
[1642591005259,0.13297844,3124.7,3124.4,0.00454739]
[1642591005657,3.5,3124.9,3124.3,1.60622581]
[1642591005658,3.2,3124.9,3124.3,1.60622581]
[1642591006058,3.2,3124.9,3124.4,0.00454739]
[1642591006658,3.2,3124.9,3124.3,0.00511581]
[1642591006906,3.2,3124.9,3124.3,1.35404784]
[1642591007105,3.5,3124.9,3124.3,1.35404784]
[1642591007308,3.2,3124.9,3124.4,0.00454739]
[1642591007507,3.5,3124.9,3124.4,0.00454739]
[1642591007709,0.128,3124.8,3124.4,0.00454739]
[1642591008307,0.15670012,3124.7,3124.4,0.00454739]
[1642591008709,3.5,3124.9,3124.4,0.00454739]
[1642591008912,0.25468229,3124.8,3124.4,0.00454739]
[1642591009111,1.128,3124.8,3124.3,0.00511581]
[1642591009311,0.08457689,3124.7,3123.9,0.00738951]
[1642591009512,0.128,3124.6,3123.8,0.80074]
[1642591009711,1.0,3124.8,3123.9,0.00738951]
[1642591009712,0.128,3124.7,3123.9,0.00738951]
[1642591010310,0.128,3124.7,3123.7,0.00852635]
[1642591010957,0.128,3124.7,3123.6,0.00909478]
[1642591010958,0.80084,3124.5,3123.6,0.00909478]
[1642591011158,4.18576822,3124.4,3123.6,0.00909478]
[1642591011362,1.54226849,3124.3,3123.4,0.01023162]
[1642591011560,19.178,3124.2,3123.1,0.80095]
[1642591011957,23.33368199,3124.1,3123.2,0.01136847]
[1642591012158,0.801,3123.9,3123.2,0.01136847]
[1642591012358,0.128,3123.8,3123.2,0.01136847]
[1642591012857,1.0,3124.1,3123.2,0.01136847]
[1642591012858,0.128,3124.0,3123.2,0.01136847]
[1642591013762,0.47968674,3123.9,3123.2,0.01136847]
[1642591013958,19.178,3123.8,3123.2,0.01136847]
[1642591014160,19.178,3123.8,3121.8,0.01284965]
[1642591014161,1.16939438,3123.7,3122.5,0.01534744]
[1642591014400,1.34782937,3123.5,3122.5,0.01534744]
[1642591014606,0.514,3123.4,3122.2,1.60225]
[1642591014801,0.514,3123.4,3122.3,0.01648428]
[1642591015201,0.80114,3123.2,3122.3,0.01648428]
[1642591015401,0.50589956,3123.4,3122.3,0.01648428]
[1642591015608,0.50589956,3123.4,3122.3,0.81763428]
[1642591015804,0.50589956,3123.4,3122.3,0.01648428]
[1642591016104,0.50589956,3123.4,3121.9,0.01875798]
[1642591016305,1.49062588,3123.1,3121.9,0.01875798]
[1642591016505,0.80126,3122.8,3121.9,0.01875798]
[1642591016705,0.25509381,3122.7,3121.9,0.01875798]
[1642591016904,0.25509381,3122.7,3122.0,0.80124]
[1642591016905,0.128,3122.7,3122.0,0.80124]
[1642591017107,0.128,3123.0,3122.0,0.80124]
[1642591017305,0.128,3123.4,3122.1,0.01762113]
[1642591017609,0.128,3124.0,3122.9,1.99025133]
[1642591017805,0.128,3124.2,3122.9,1.99025133]
[1642591018053,0.128,3124.2,3123.0,0.01250532]
[1642591018262,0.128,3124.2,3123.1,0.80089]
[1642591018759,0.128,3124.2,3123.2,0.01136847]
[1642591018958,0.16939438,3124.1,3123.2,0.01136847]
[1642591019159,0.80094,3123.9,3123.2,0.01136847]
[1642591019359,0.128,3123.8,3123.2,0.01136847]
[1642591019762,0.53753137,3123.7,3123.2,0.01136847]
[1642591019959,0.128,3123.6,3123.1,0.0119369]
[1642591020159,0.128,3123.6,3122.2,0.01705271]
[1642591020365,0.128,3123.6,3122.9,0.01307374]
[1642591020560,0.128,3123.6,3122.6,1.60203]
[1642591020561,0.92914,3123.6,3122.6,1.60203]
[1642591020959,6.75,3123.5,3122.6,1.58264625]
[1642591021160,6.75454739,3123.5,3122.6,2.95851663]
[1642591021360,0.00397897,3123.4,3122.6,2.95851663]
[1642591021809,0.00341054,3123.3,3122.7,0.80094]
[1642591022010,3.2040554,3125.8,3122.7,0.80094]
[1642591022011,3.3195031,3124.6,3123.5,0.01023162]
[1642591022207,0.128,3124.6,3123.5,0.01023162]
[1642591022406,0.128,3124.9,3123.7,1.42240146]
[1642591022807,3.18976838,3123.4,3123.0,3.1915031]
[1642591023008,3.18976838,3123.4,3122.8,2.40505212]
[1642591023009,0.14921379,3123.3,3123.1,0.80087]
[1642591023206,3.18976838,3123.4,3123.2,2.07521357]
[1642591023414,3.18976838,3123.4,3123.1,0.80200685]
[1642591023610,3.18976838,3123.4,3123.1,0.00113685]
[1642591023810,0.0820371,3123.3,3123.1,0.00113685]
[1642591024006,3.18976838,3123.4,3122.4,1.60214]
[1642591024007,3.31776838,3123.4,3122.4,1.60214]
[1642591024207,3.18976838,3123.4,3122.7,0.8011]
[1642591024408,3.48976838,3123.4,3122.7,0.8011]
[1642591024806,1.0,3123.3,3122.7,0.8011]
[1642591025009,1.0,3123.3,3122.5,0.00454739]
[1642591025010,0.128,3123.2,3122.5,0.00454739]
[1642591025408,0.128,3123.2,3122.3,0.00568423]
[1642591025660,0.428,3123.2,3122.5,0.00454739]
[1642591025860,0.428,3123.2,3122.5,2.29581435]
[1642591026063,0.428,3123.2,3122.6,1.60204]
[1642591026260,0.3,3123.2,3122.6,1.60601896]
[1642591026462,0.3,3123.2,3122.7,0.00341054]
[1642591026663,0.128,3123.1,3122.7,0.00341054]
[1642591026962,0.128,3123.1,3122.0,0.0073895]
[1642591026963,0.8012555,3123.0,3122.0,0.0073895]
[1642591027164,0.128,3122.9,3122.0,0.0073895]
[1642591027564,0.3,3123.0,3122.0,0.0073895]
[1642591027764,0.3,3123.0,3121.7,0.00909477]
[1642591027765,0.10569305,3122.8,3121.7,0.00909477]
[1642591027968,0.09409974,3122.6,3121.7,0.00909477]
[1642591028164,1.428,3123.0,3121.7,0.00909477]
[1642591028365,1.428,3123.0,3121.9,0.80128]
[1642591028570,0.80127,3122.7,3121.9,0.80128]
[1642591028765,0.1026985,3122.5,3122.0,0.0073895]
[1642591028965,0.09381112,3122.3,3122.0,0.0073895]
[1642591029300,3.58665033,3122.6,3122.0,0.0073895]
[1642591029501,0.80133,3122.3,3122.0,0.0073895]
[1642591029703,0.128,3122.2,3121.7,0.00909477]
[1642591029903,0.128,3122.2,3121.6,0.0096632]
[1642591030504,1.18737,3122.1,3121.6,0.0096632]
[1642591030808,0.128,3122.0,3121.6,0.0096632]
[1642591031109,0.128,3122.0,3120.4,7.45]
[1642591031110,0.386,3121.9,3120.6,0.01534743]
[1642591031308,0.08957746,3121.7,3120.6,0.01534743]
[1642591031507,0.128,3121.8,3120.6,1.23421293]
[1642591031707,0.8015,3121.7,3120.6,2.03570293]
[1642591031913,2.32124974,3121.9,3121.1,0.01253006]
[1642591031914,0.128,3121.9,3121.1,0.01253006]
[1642591032108,3.2,3122.2,3121.1,0.01253006]
[1642591032306,3.2,3122.2,3121.2,0.01193689]
[1642591032706,3.2,3122.2,3122.0,1.34558678]
[1642591032907,3.2,3122.2,3122.1,1.95007254]
[1642591033150,3.2,3122.2,3122.1,1.95689362]
[1642591033551,3.2,3122.2,3122.1,0.00682108]
[1642591033952,3.0476,3122.2,3122.1,0.00682108]
[1642591034155,1.98818,3123.5,3122.1,0.00682108]
[1642591034156,0.128,3123.7,3122.4,0.80095]
[1642591034356,0.128,3124.2,3122.8,0.01286089]
[1642591034555,0.00170527,3123.6,3122.8,0.01286089]
[1642591034751,0.00454739,3124.1,3122.9,0.00227369]
[1642591034952,0.00113685,3123.5,3122.9,0.00227369]
[1642591035153,0.128,3124.0,3123.0,1.60157]